[Event "Titled Tuesday Blitz July 11 Late 2023"]
[White "Merino Garcia, Rafael II"]
[Black "Mahdavi, Reza"]
[WhiteFideId "2209128"]
[BlackFideId "12595926"]
[WhiteElo "2499"]
[BlackElo "2770"]
[Result "0-1"]
[Round "2"]
[TimeControl "180+2"]
[Date "2023.07.11"]
[WhiteClock "0:00:06"]
[BlackClock "0:01:46"]
[Board "53"]

1. d4 {[%clk 0:03:00]}  Nf6 {[%clk 0:02:56]} 2. Nf3 {[%clk 0:03:00]}  e6 {[%clk 0:02:56]} 3. g3 {[%clk 0:03:00]}  b5 {[%clk 0:02:56]} 4. Bg2 {[%clk 0:03:00]}  Bb7 {[%clk 0:02:57]} 5. O-O {[%clk 0:02:59]}  c5 {[%clk 0:02:57]} 6. a4 {[%clk 0:03:00]}  b4 {[%clk 0:02:57]} 7. c4 {[%clk 0:02:59]}  cxd4 {[%clk 0:02:46]} 8. Nxd4 {[%clk 0:02:50]}  Bxg2 {[%clk 0:02:47]} 9. Kxg2 {[%clk 0:02:50]}  Qc8 {[%clk 0:02:48]} 10. b3 {[%clk 0:02:44]}  Be7 {[%clk 0:02:49]} 11. Bf4 {[%clk 0:02:11]}  O-O {[%clk 0:02:31]} 12. Nd2 {[%clk 0:01:59]}  Qb7+ {[%clk 0:02:27]} 13. f3 {[%clk 0:02:00]}  d5 {[%clk 0:02:26]} 14. Rc1 {[%clk 0:01:40]}  Nbd7 {[%clk 0:02:20]} 15. Be3 {[%clk 0:00:56]}  Rfd8 {[%clk 0:02:13]} 16. Rc2 {[%clk 0:00:51]}  Bf8 {[%clk 0:02:10]} 17. Qc1 {[%clk 0:00:47]}  g6 {[%clk 0:02:04]} 18. Bf2 {[%clk 0:00:42]}  e5 {[%clk 0:02:03]} 19. Nb5 {[%clk 0:00:36]}  a6 {[%clk 0:02:03]} 20. c5 {[%clk 0:00:33]}  Qc6 {[%clk 0:02:01]} 21. Nd6 {[%clk 0:00:30]}  Bxd6 {[%clk 0:02:01]} 22. cxd6 {[%clk 0:00:31]}  Qxd6 {[%clk 0:02:02]} 23. Rc6 {[%clk 0:00:30]}  Qe7 {[%clk 0:02:02]} 24. Rc7 {[%clk 0:00:27]}  d4 {[%clk 0:01:58]} 25. Nc4 {[%clk 0:00:24]}  Nd5 {[%clk 0:01:58]} 26. Rc6 {[%clk 0:00:24]}  Nc3 {[%clk 0:01:56]} 27. Qd2 {[%clk 0:00:18]}  Rdc8 {[%clk 0:01:55]} 28. Rxc8+ {[%clk 0:00:18]}  Rxc8 {[%clk 0:01:56]} 29. Qh6 {[%clk 0:00:15]}  Nc5 {[%clk 0:01:55]} 30. Re1 {[%clk 0:00:13]}  Nxb3 {[%clk 0:01:56]} 31. Nb6 {[%clk 0:00:12]}  Rc6 {[%clk 0:01:53]} 32. h4 {[%clk 0:00:10]}  Rxb6 {[%clk 0:01:53]} 33. h5 {[%clk 0:00:11]}  Qf8 {[%clk 0:01:53]} 34. Qg5 {[%clk 0:00:10]}  f6 {[%clk 0:01:51]} 35. Qg4 {[%clk 0:00:09]}  f5 {[%clk 0:01:47]} 36. Qg5 {[%clk 0:00:10]}  Qf6 {[%clk 0:01:48]} 37. Qh6 {[%clk 0:00:06]}  g5 {[%clk 0:01:46]} 0-1


[Site "https://www.chess.com"]

[Event "Titled Tuesday Blitz July 11 Late 2023"]
[White "Yanchenko, Roman"]
[Black "Karas, Marek"]
[WhiteFideId "4137329"]
[BlackFideId "14928558"]
[WhiteElo "2752"]
[BlackElo "2468"]
[Result "0-1"]
[Round "2"]
[TimeControl "180+2"]
[Date "2023.07.11"]
[WhiteClock "0:00:21"]
[BlackClock "0:01:03"]
[Board "55"]

1. d4 {[%clk 0:03:00]}  Nf6 {[%clk 0:02:59]} 2. c4 {[%clk 0:03:01]}  c5 {[%clk 0:02:58]} 3. Nf3 {[%clk 0:03:00]}  cxd4 {[%clk 0:02:57]} 4. Nxd4 {[%clk 0:03:01]}  e6 {[%clk 0:02:57]} 5. Nc3 {[%clk 0:03:00]}  Nc6 {[%clk 0:02:57]} 6. g3 {[%clk 0:03:00]}  Bb4 {[%clk 0:02:51]} 7. Nb5 {[%clk 0:02:52]}  d5 {[%clk 0:02:47]} 8. a3 {[%clk 0:02:46]}  Bxc3+ {[%clk 0:02:46]} 9. Nxc3 {[%clk 0:02:46]}  d4 {[%clk 0:02:45]} 10. Nb1 {[%clk 0:02:42]}  O-O {[%clk 0:02:44]} 11. Bg2 {[%clk 0:02:40]}  e5 {[%clk 0:02:44]} 12. Nd2 {[%clk 0:02:36]}  Be6 {[%clk 0:02:42]} 13. O-O {[%clk 0:02:34]}  Qd7 {[%clk 0:02:42]} 14. Re1 {[%clk 0:02:20]}  Bh3 {[%clk 0:02:40]} 15. Bh1 {[%clk 0:02:20]}  Rfe8 {[%clk 0:02:39]} 16. Ne4 {[%clk 0:02:13]}  Nxe4 {[%clk 0:02:36]} 17. Bxe4 {[%clk 0:02:14]}  Bf5 {[%clk 0:02:33]} 18. Bg2 {[%clk 0:02:14]}  e4 {[%clk 0:02:29]} 19. b4 {[%clk 0:02:14]}  Rad8 {[%clk 0:02:26]} 20. e3 {[%clk 0:02:04]}  d3 {[%clk 0:02:22]} 21. Bd2 {[%clk 0:02:04]}  Ne5 {[%clk 0:02:21]} 22. Rc1 {[%clk 0:02:03]}  Bg4 {[%clk 0:02:19]} 23. Qb3 {[%clk 0:02:03]}  Nf3+ {[%clk 0:02:18]} 24. Kh1 {[%clk 0:01:21]}  Nxd2 {[%clk 0:02:16]} 25. Qc3 {[%clk 0:01:22]}  Nf3 {[%clk 0:02:14]} 26. Red1 {[%clk 0:01:21]}  Bh3 {[%clk 0:02:08]} 27. c5 {[%clk 0:01:17]}  Bxg2+ {[%clk 0:02:05]} 28. Kxg2 {[%clk 0:01:17]}  Qg4 {[%clk 0:02:01]} 29. h3 {[%clk 0:01:17]}  Qg6 {[%clk 0:01:55]} 30. b5 {[%clk 0:01:11]}  h5 {[%clk 0:01:54]} 31. c6 {[%clk 0:01:11]}  bxc6 {[%clk 0:01:54]} 32. bxc6 {[%clk 0:00:55]}  h4 {[%clk 0:01:53]} 33. c7 {[%clk 0:00:54]}  Rc8 {[%clk 0:01:52]} 34. g4 {[%clk 0:00:51]}  f5 {[%clk 0:01:49]} 35. Qc6 {[%clk 0:00:51]}  Qxc6 {[%clk 0:01:46]} 36. Rxc6 {[%clk 0:00:52]}  fxg4 {[%clk 0:01:44]} 37. hxg4 {[%clk 0:00:52]}  Re7 {[%clk 0:01:44]} 38. Rc4 {[%clk 0:00:50]}  Rcxc7 {[%clk 0:01:43]} 39. Rxe4 {[%clk 0:00:50]}  Rxe4 {[%clk 0:01:43]} 40. Kxf3 {[%clk 0:00:51]}  Ree7 {[%clk 0:01:41]} 41. Rxd3 {[%clk 0:00:51]}  Red7 {[%clk 0:01:42]} 42. Rb3 {[%clk 0:00:51]}  Rc2 {[%clk 0:01:40]} 43. g5 {[%clk 0:00:50]}  Kh7 {[%clk 0:01:39]} 44. Rb4 {[%clk 0:00:47]}  Kg6 {[%clk 0:01:38]} 45. Rxh4 {[%clk 0:00:47]}  Kxg5 {[%clk 0:01:38]} 46. Rg4+ {[%clk 0:00:47]}  Kf6 {[%clk 0:01:38]} 47. Kg3 {[%clk 0:00:46]}  g5 {[%clk 0:01:34]} 48. Ra4 {[%clk 0:00:45]}  Rdd2 {[%clk 0:01:27]} 49. Ra6+ {[%clk 0:00:43]}  Kf5 {[%clk 0:01:26]} 50. Ra5+ {[%clk 0:00:43]}  Ke4 {[%clk 0:01:25]} 51. Ra4+ {[%clk 0:00:43]}  Kd3 {[%clk 0:01:25]} 52. Kg4 {[%clk 0:00:38]}  Rxf2 {[%clk 0:01:24]} 53. Kxg5 {[%clk 0:00:38]}  Kxe3 {[%clk 0:01:24]} 54. Rxa7 {[%clk 0:00:38]}  Rc1 {[%clk 0:01:23]} 55. Re7+ {[%clk 0:00:36]}  Kd4 {[%clk 0:01:23]} 56. Rd7+ {[%clk 0:00:30]}  Kc3 {[%clk 0:01:21]} 57. Kh4 {[%clk 0:00:20]}  Rg1 {[%clk 0:01:20]} 58. Kh3 {[%clk 0:00:19]}  Rf8 {[%clk 0:01:11]} 59. Kh2 {[%clk 0:00:17]}  Rg6 {[%clk 0:01:10]} 60. Rc7+ {[%clk 0:00:18]}  Kb3 {[%clk 0:01:10]} 61. Rh7 {[%clk 0:00:19]}  Kxa3 {[%clk 0:01:08]} 62. Rh5 {[%clk 0:00:19]}  Rff6 {[%clk 0:01:06]} 63. Rd5 {[%clk 0:00:19]}  Kb3 {[%clk 0:01:06]} 64. Rc5 {[%clk 0:00:19]}  Kb4 {[%clk 0:01:07]} 65. Rc7 {[%clk 0:00:20]}  Rc6 {[%clk 0:01:05]} 66. Rd7 {[%clk 0:00:20]}  Kc5 {[%clk 0:01:05]} 67. Rd8 {[%clk 0:00:20]}  Rcd6 {[%clk 0:01:06]} 68. Rc8+ {[%clk 0:00:21]}  Kd4 {[%clk 0:01:06]} 69. Ra8 {[%clk 0:00:22]}  Ke3 {[%clk 0:01:06]} 70. Ra3+ {[%clk 0:00:22]}  Rd3 {[%clk 0:01:05]} 71. Ra8 {[%clk 0:00:22]}  Kf2 {[%clk 0:01:03]} 72. Ra2+ {[%clk 0:00:21]}  Kf3 {[%clk 0:01:03]} 73. Ra8 {[%clk 0:00:21]}  Rd2+ {[%clk 0:01:02]} 74. Kh1 {[%clk 0:00:20]}  Rh6+ {[%clk 0:01:02]} 75. Kg1 {[%clk 0:00:21]}  Rd1# {[%clk 0:01:03]} 0-1


[Site "https://www.chess.com"]

[Event "Titled Tuesday Blitz July 11 Late 2023"]
[White "Tanenbaum, Zachary"]
[Black "Baches Garcia, Guillermo"]
[WhiteFideId "2060850"]
[BlackFideId "2209764"]
[WhiteElo "2744"]
[BlackElo "2464"]
[Result "1-0"]
[Round "2"]
[TimeControl "180+2"]
[Date "2023.07.11"]
[WhiteClock "0:02:09"]
[BlackClock "0:00:00"]
[Board "56"]

1. e4 {[%clk 0:03:00]}  d5 {[%clk 0:02:58]} 2. exd5 {[%clk 0:03:00]}  Qxd5 {[%clk 0:02:58]} 3. Nc3 {[%clk 0:03:00]}  Qa5 {[%clk 0:02:59]} 4. d4 {[%clk 0:03:00]}  Nf6 {[%clk 0:02:59]} 5. Nf3 {[%clk 0:02:59]}  Bf5 {[%clk 0:02:59]} 6. Bd2 {[%clk 0:02:58]}  e6 {[%clk 0:02:55]} 7. Ne5 {[%clk 0:02:44]}  c6 {[%clk 0:02:48]} 8. g4 {[%clk 0:02:39]}  Bg6 {[%clk 0:02:40]} 9. h4 {[%clk 0:02:38]}  h5 {[%clk 0:02:29]} 10. Nxg6 {[%clk 0:02:34]}  fxg6 {[%clk 0:02:29]} 11. g5 {[%clk 0:02:32]}  Nd5 {[%clk 0:02:23]} 12. Bd3 {[%clk 0:02:31]}  Ne7 {[%clk 0:02:18]} 13. Qe2 {[%clk 0:02:25]}  Nd7 {[%clk 0:02:00]} 14. Nb5 {[%clk 0:02:19]}  Qxb5 {[%clk 0:01:26]} 15. Bxb5 {[%clk 0:02:18]}  cxb5 {[%clk 0:01:27]} 16. Qxb5 {[%clk 0:02:15]}  O-O-O {[%clk 0:01:26]} 17. Qc4+ {[%clk 0:02:12]}  Nc6 {[%clk 0:00:00]} 18. O-O-O {[%clk 0:02:09]} 1-0


[Site "https://www.chess.com"]

[Event "Titled Tuesday Blitz July 11 Late 2023"]
[White "SergioMoralesG"]
[Black "Jaracz, Pawel"]
[BlackFideId "1102222"]
[WhiteElo "2448"]
[BlackElo "2721"]
[Result "1-0"]
[Round "2"]
[TimeControl "180+2"]
[Date "2023.07.11"]
[WhiteClock "0:00:10"]
[BlackClock "0:00:08"]
[Board "59"]

1. d4 {[%clk 0:03:00]}  d5 {[%clk 0:02:55]} 2. c4 {[%clk 0:03:00]}  e6 {[%clk 0:02:56]} 3. Nf3 {[%clk 0:03:00]}  Nf6 {[%clk 0:02:55]} 4. Nc3 {[%clk 0:03:00]}  c6 {[%clk 0:02:53]} 5. Bg5 {[%clk 0:02:57]}  dxc4 {[%clk 0:02:52]} 6. e4 {[%clk 0:02:49]}  b5 {[%clk 0:02:52]} 7. e5 {[%clk 0:02:47]}  h6 {[%clk 0:02:52]} 8. Bh4 {[%clk 0:02:47]}  g5 {[%clk 0:02:52]} 9. Bg3 {[%clk 0:02:45]}  Nd5 {[%clk 0:02:51]} 10. Nd2 {[%clk 0:02:40]}  b4 {[%clk 0:02:43]} 11. Nce4 {[%clk 0:02:22]}  c3 {[%clk 0:02:28]} 12. bxc3 {[%clk 0:02:07]}  Nxc3 {[%clk 0:02:28]} 13. Nxc3 {[%clk 0:01:50]}  bxc3 {[%clk 0:02:28]} 14. Ne4 {[%clk 0:01:50]}  Bb4 {[%clk 0:02:26]} 15. Qc2 {[%clk 0:01:40]}  Qxd4 {[%clk 0:02:23]} 16. Rd1 {[%clk 0:01:33]}  Qb6 {[%clk 0:02:14]} 17. Nd6+ {[%clk 0:01:10]}  Ke7 {[%clk 0:02:11]} 18. Be2 {[%clk 0:01:03]}  Nd7 {[%clk 0:02:05]} 19. O-O {[%clk 0:00:56]}  Qc5 {[%clk 0:01:47]} 20. Bh5 {[%clk 0:00:53]}  Ba6 {[%clk 0:01:21]} 21. Rfe1 {[%clk 0:00:49]}  Raf8 {[%clk 0:01:09]} 22. Nxf7 {[%clk 0:00:46]}  Rxf7 {[%clk 0:01:02]} 23. Bxf7 {[%clk 0:00:46]}  Nf8 {[%clk 0:00:54]} 24. Bh5 {[%clk 0:00:44]}  Bc4 {[%clk 0:00:47]} 25. Kh1 {[%clk 0:00:19]}  Bd5 {[%clk 0:00:47]} 26. f4 {[%clk 0:00:19]}  Qc4 {[%clk 0:00:32]} 27. Rf1 {[%clk 0:00:17]}  Qxa2 {[%clk 0:00:32]} 28. Qd3 {[%clk 0:00:13]}  Qc4 {[%clk 0:00:25]} 29. Qc2 {[%clk 0:00:10]}  Be4 {[%clk 0:00:16]} 30. Qa4 {[%clk 0:00:10]}  Bc5 {[%clk 0:00:09]} 31. Qxc4 {[%clk 0:00:08]}  Bd5 {[%clk 0:00:09]} 32. Qxc5+ {[%clk 0:00:08]}  Kd7 {[%clk 0:00:09]} 33. Rxd5+ {[%clk 0:00:08]}  exd5 {[%clk 0:00:09]} 34. Qxa7+ {[%clk 0:00:09]}  Ke6 {[%clk 0:00:09]} 35. fxg5 {[%clk 0:00:10]}  hxg5 {[%clk 0:00:08]} 36. Bg4# {[%clk 0:00:10]} 1-0


[Site "https://www.chess.com"]

[Event "Titled Tuesday Blitz July 11 Late 2023"]
[White "Weetik, Vjacheslav"]
[Black "Romero Ruscalleda, Josep"]
[WhiteFideId "4153472"]
[BlackFideId "2231859"]
[WhiteElo "2717"]
[BlackElo "2438"]
[Result "0-1"]
[Round "2"]
[TimeControl "180+2"]
[Date "2023.07.11"]
[WhiteClock "0:00:37"]
[BlackClock "0:01:08"]
[Board "62"]

1. d4 {[%clk 0:02:58]}  g6 {[%clk 0:03:00]} 2. e4 {[%clk 0:02:58]}  Bg7 {[%clk 0:03:01]} 3. Nf3 {[%clk 0:02:59]}  d6 {[%clk 0:03:01]} 4. Bc4 {[%clk 0:02:58]}  Nf6 {[%clk 0:03:00]} 5. Qe2 {[%clk 0:02:58]}  O-O {[%clk 0:03:00]} 6. O-O {[%clk 0:02:57]}  Nc6 {[%clk 0:02:57]} 7. c3 {[%clk 0:02:57]}  Bg4 {[%clk 0:02:54]} 8. Nbd2 {[%clk 0:02:55]}  e5 {[%clk 0:02:52]} 9. h3 {[%clk 0:02:55]}  Bxf3 {[%clk 0:02:51]} 10. Nxf3 {[%clk 0:02:56]}  exd4 {[%clk 0:02:50]} 11. cxd4 {[%clk 0:02:56]}  d5 {[%clk 0:02:48]} 12. exd5 {[%clk 0:02:56]}  Nxd5 {[%clk 0:02:48]} 13. Bg5 {[%clk 0:02:55]}  Nxd4 {[%clk 0:02:33]} 14. Nxd4 {[%clk 0:02:46]}  Qxg5 {[%clk 0:02:32]} 15. Nf3 {[%clk 0:02:46]}  Qh5 {[%clk 0:02:14]} 16. g4 {[%clk 0:02:39]}  Qxh3 {[%clk 0:02:13]} 17. Bxd5 {[%clk 0:02:39]}  Qxg4+ {[%clk 0:02:12]} 18. Kh1 {[%clk 0:02:38]}  Qh5+ {[%clk 0:02:07]} 19. Kg2 {[%clk 0:02:38]}  Qxd5 {[%clk 0:02:06]} 20. Rfd1 {[%clk 0:02:36]}  Qh5 {[%clk 0:02:00]} 21. Qc4 {[%clk 0:02:30]}  c6 {[%clk 0:01:57]} 22. Rh1 {[%clk 0:02:29]}  Qd5 {[%clk 0:01:54]} 23. Qh4 {[%clk 0:02:26]}  h5 {[%clk 0:01:49]} 24. Rad1 {[%clk 0:02:26]}  Qxa2 {[%clk 0:01:43]} 25. Rd7 {[%clk 0:02:24]}  Qxb2 {[%clk 0:01:41]} 26. Qg3 {[%clk 0:02:15]}  Rad8 {[%clk 0:01:37]} 27. Qc7 {[%clk 0:01:35]}  Rxd7 {[%clk 0:01:35]} 28. Qxd7 {[%clk 0:01:36]}  a5 {[%clk 0:01:30]} 29. Re1 {[%clk 0:01:34]}  a4 {[%clk 0:01:26]} 30. Re7 {[%clk 0:01:34]}  a3 {[%clk 0:01:19]} 31. Ng5 {[%clk 0:01:33]}  Qf6 {[%clk 0:01:15]} 32. Ne4 {[%clk 0:01:33]}  Qf4 {[%clk 0:01:11]} 33. Nd6 {[%clk 0:01:30]}  Qg4+ {[%clk 0:01:10]} 34. Qxg4 {[%clk 0:00:47]}  hxg4 {[%clk 0:01:10]} 35. Rxb7 {[%clk 0:00:46]}  a2 {[%clk 0:01:09]} 36. Nf5 {[%clk 0:00:37]}  gxf5 {[%clk 0:01:08]} 0-1


[Site "https://www.chess.com"]

[Event "Titled Tuesday Blitz July 11 Late 2023"]
[White "Andrews, Todd"]
[Black "Haydon, David L"]
[WhiteFideId "2012456"]
[BlackFideId "415405"]
[WhiteElo "2438"]
[BlackElo "2716"]
[Result "0-1"]
[Round "2"]
[TimeControl "180+2"]
[Date "2023.07.11"]
[WhiteClock "0:00:00"]
[BlackClock "0:00:45"]
[Board "63"]

1. e4 {[%clk 0:03:00]}  c6 {[%clk 0:02:56]} 2. c4 {[%clk 0:03:00]}  d5 {[%clk 0:02:55]} 3. exd5 {[%clk 0:03:00]}  cxd5 {[%clk 0:02:55]} 4. cxd5 {[%clk 0:03:00]}  Qxd5 {[%clk 0:02:55]} 5. Nc3 {[%clk 0:03:00]}  Qd8 {[%clk 0:02:55]} 6. Nf3 {[%clk 0:03:00]}  Nf6 {[%clk 0:02:56]} 7. d4 {[%clk 0:03:00]}  e6 {[%clk 0:02:56]} 8. Bd3 {[%clk 0:03:00]}  Be7 {[%clk 0:02:56]} 9. O-O {[%clk 0:03:00]}  O-O {[%clk 0:02:56]} 10. Re1 {[%clk 0:02:59]}  Nc6 {[%clk 0:02:54]} 11. a3 {[%clk 0:02:54]}  b6 {[%clk 0:02:54]} 12. Bc2 {[%clk 0:02:54]}  Bb7 {[%clk 0:02:53]} 13. Qd3 {[%clk 0:02:55]}  Rc8 {[%clk 0:02:53]} 14. Bg5 {[%clk 0:02:55]}  g6 {[%clk 0:02:53]} 15. Rad1 {[%clk 0:02:54]}  Na5 {[%clk 0:02:52]} 16. Ne5 {[%clk 0:02:47]}  Nd7 {[%clk 0:02:46]} 17. Bh6 {[%clk 0:02:45]}  Re8 {[%clk 0:02:34]} 18. Qh3 {[%clk 0:02:30]}  Nxe5 {[%clk 0:02:28]} 19. dxe5 {[%clk 0:02:30]}  Qc7 {[%clk 0:02:26]} 20. Be4 {[%clk 0:02:07]}  Nc4 {[%clk 0:02:20]} 21. Bxb7 {[%clk 0:02:04]}  Qxb7 {[%clk 0:02:20]} 22. Re2 {[%clk 0:01:43]}  Red8 {[%clk 0:02:15]} 23. Rde1 {[%clk 0:01:38]}  Qd7 {[%clk 0:01:55]} 24. Ne4 {[%clk 0:00:59]}  Qd3 {[%clk 0:01:47]} 25. Qxd3 {[%clk 0:00:49]}  Rxd3 {[%clk 0:01:46]} 26. Bg5 {[%clk 0:00:44]}  Bxg5 {[%clk 0:01:41]} 27. Nxg5 {[%clk 0:00:45]}  Rcd8 {[%clk 0:01:34]} 28. g3 {[%clk 0:00:45]}  Rd2 {[%clk 0:01:30]} 29. b3 {[%clk 0:00:26]}  Rxe2 {[%clk 0:01:29]} 30. Rxe2 {[%clk 0:00:26]}  Nxa3 {[%clk 0:01:30]} 31. Ne4 {[%clk 0:00:24]}  Nb5 {[%clk 0:01:28]} 32. Nf6+ {[%clk 0:00:24]}  Kg7 {[%clk 0:01:28]} 33. Rc2 {[%clk 0:00:23]}  Nd4 {[%clk 0:01:19]} 34. Rc7 {[%clk 0:00:19]}  Nf3+ {[%clk 0:01:19]} 35. Kg2 {[%clk 0:00:20]}  Nxe5 {[%clk 0:01:19]} 36. Ne4 {[%clk 0:00:17]}  Rd4 {[%clk 0:01:18]} 37. Ng5 {[%clk 0:00:16]}  Rd2 {[%clk 0:01:09]} 38. Nxe6+ {[%clk 0:00:16]}  Kf6 {[%clk 0:01:08]} 39. Nf4 {[%clk 0:00:16]}  Ra2 {[%clk 0:01:07]} 40. h4 {[%clk 0:00:14]}  Ng4 {[%clk 0:01:03]} 41. Nd3 {[%clk 0:00:14]}  Rd2 {[%clk 0:01:00]} 42. Rc6+ {[%clk 0:00:11]}  Kg7 {[%clk 0:00:59]} 43. Nb4 {[%clk 0:00:10]}  Rxf2+ {[%clk 0:00:58]} 44. Kg1 {[%clk 0:00:11]}  Rb2 {[%clk 0:00:56]} 45. Nd5 {[%clk 0:00:10]}  Rxb3 {[%clk 0:00:54]} 46. Kg2 {[%clk 0:00:11]}  Rd3 {[%clk 0:00:53]} 47. Nf4 {[%clk 0:00:11]}  Rd2+ {[%clk 0:00:53]} 48. Kf3 {[%clk 0:00:11]}  Ne5+ {[%clk 0:00:49]} 49. Ke3 {[%clk 0:00:10]}  Nxc6 {[%clk 0:00:47]} 50. Kxd2 {[%clk 0:00:11]}  Kf6 {[%clk 0:00:47]} 51. Ke3 {[%clk 0:00:11]}  Kf5 {[%clk 0:00:47]} 52. Kf3 {[%clk 0:00:10]}  b5 {[%clk 0:00:46]} 53. g4+ {[%clk 0:00:11]}  Ke5 {[%clk 0:00:46]} 54. Nd3+ {[%clk 0:00:10]}  Kd4 {[%clk 0:00:46]} 55. Nf4 {[%clk 0:00:10]}  Ne5+ {[%clk 0:00:46]} 56. Kg3 {[%clk 0:00:10]}  b4 {[%clk 0:00:46]} 57. h5 {[%clk 0:00:11]}  b3 {[%clk 0:00:46]} 58. Ne2+ {[%clk 0:00:00]}  Kc4 {[%clk 0:00:45]} 0-1


[Site "https://www.chess.com"]

[Event "Titled Tuesday Blitz July 11 Late 2023"]
[White "caropawn10"]
[Black "Mikhalsky, Vladimir"]
[BlackFideId "14144352"]
[WhiteElo "2711"]
[BlackElo "2431"]
[Result "1-0"]
[Round "2"]
[TimeControl "180+2"]
[Date "2023.07.11"]
[WhiteClock "0:00:38"]
[BlackClock "0:00:00"]
[Board "65"]

1. c4 {[%clk 0:03:00]}  c5 {[%clk 0:02:59]} 2. Nf3 {[%clk 0:02:59]}  Nf6 {[%clk 0:02:59]} 3. d4 {[%clk 0:03:00]}  cxd4 {[%clk 0:02:58]} 4. Nxd4 {[%clk 0:03:01]}  g6 {[%clk 0:02:54]} 5. Nc3 {[%clk 0:02:59]}  Bg7 {[%clk 0:02:55]} 6. e4 {[%clk 0:02:59]}  O-O {[%clk 0:02:55]} 7. Be3 {[%clk 0:02:56]}  d6 {[%clk 0:02:53]} 8. Be2 {[%clk 0:02:57]}  Nc6 {[%clk 0:02:50]} 9. O-O {[%clk 0:02:57]}  Nxd4 {[%clk 0:02:49]} 10. Bxd4 {[%clk 0:02:57]}  a6 {[%clk 0:02:46]} 11. Rc1 {[%clk 0:02:54]}  Be6 {[%clk 0:02:43]} 12. b3 {[%clk 0:02:54]}  Nd7 {[%clk 0:02:29]} 13. Be3 {[%clk 0:02:50]}  Nc5 {[%clk 0:02:25]} 14. f3 {[%clk 0:02:24]}  f5 {[%clk 0:02:24]} 15. exf5 {[%clk 0:02:23]}  Rxf5 {[%clk 0:02:22]} 16. Qd2 {[%clk 0:02:22]}  Kh8 {[%clk 0:02:06]} 17. Rfe1 {[%clk 0:02:21]}  Qa5 {[%clk 0:01:48]} 18. Ne4 {[%clk 0:01:57]}  Qxd2 {[%clk 0:01:42]} 19. Nxd2 {[%clk 0:01:57]}  b5 {[%clk 0:01:35]} 20. Bf1 {[%clk 0:01:54]}  b4 {[%clk 0:01:31]} 21. Bxc5 {[%clk 0:01:54]}  dxc5 {[%clk 0:01:18]} 22. Rxe6 {[%clk 0:01:54]}  Bh6 {[%clk 0:01:18]} 23. Rc2 {[%clk 0:01:48]}  Rd8 {[%clk 0:01:14]} 24. Ne4 {[%clk 0:01:46]}  Rd1 {[%clk 0:01:04]} 25. Nf2 {[%clk 0:01:46]}  Ra1 {[%clk 0:01:00]} 26. Rxe7 {[%clk 0:01:36]}  Bg7 {[%clk 0:00:57]} 27. Re8+ {[%clk 0:01:32]}  Rf8 {[%clk 0:00:55]} 28. Rxf8+ {[%clk 0:01:32]}  Bxf8 {[%clk 0:00:56]} 29. g3 {[%clk 0:01:32]}  Bg7 {[%clk 0:00:54]} 30. Kg2 {[%clk 0:01:32]}  Bd4 {[%clk 0:00:53]} 31. Ne4 {[%clk 0:01:31]}  a5 {[%clk 0:00:52]} 32. f4 {[%clk 0:01:13]}  Re1 {[%clk 0:00:45]} 33. Nd2 {[%clk 0:01:12]}  Re3 {[%clk 0:00:42]} 34. Nf3 {[%clk 0:01:12]}  Bf6 {[%clk 0:00:40]} 35. Re2 {[%clk 0:01:07]}  Rc3 {[%clk 0:00:40]} 36. g4 {[%clk 0:01:08]}  a4 {[%clk 0:00:33]} 37. bxa4 {[%clk 0:01:09]}  Ra3 {[%clk 0:00:29]} 38. g5 {[%clk 0:01:09]}  Ba1 {[%clk 0:00:25]} 39. h4 {[%clk 0:01:08]}  Rxa4 {[%clk 0:00:24]} 40. h5 {[%clk 0:01:08]}  gxh5 {[%clk 0:00:22]} 41. f5 {[%clk 0:01:08]}  Kg7 {[%clk 0:00:21]} 42. f6+ {[%clk 0:01:08]}  Kf8 {[%clk 0:00:20]} 43. Rd2 {[%clk 0:01:04]}  Bd4 {[%clk 0:00:18]} 44. Nxd4 {[%clk 0:01:03]}  cxd4 {[%clk 0:00:19]} 45. Rxd4 {[%clk 0:01:04]}  Rxa2+ {[%clk 0:00:18]} 46. Kg3 {[%clk 0:01:04]}  Rc2 {[%clk 0:00:13]} 47. Bh3 {[%clk 0:00:59]}  b3 {[%clk 0:00:10]} 48. Be6 {[%clk 0:00:57]}  Ke8 {[%clk 0:00:09]} 49. f7+ {[%clk 0:00:56]}  Ke7 {[%clk 0:00:09]} 50. Rd8 {[%clk 0:00:40]}  Rc3+ {[%clk 0:00:00]} 51. Kf4 {[%clk 0:00:38]} 1-0


[Site "https://www.chess.com"]

[Event "Titled Tuesday Blitz July 11 Late 2023"]
[White "Todev, Simeon"]
[Black "Rosen, Eric"]
[WhiteFideId "2925133"]
[BlackFideId "2032562"]
[WhiteElo "2426"]
[BlackElo "2704"]
[Result "0-1"]
[Round "2"]
[TimeControl "180+2"]
[Date "2023.07.11"]
[WhiteClock "0:01:35"]
[BlackClock "0:00:54"]
[Board "66"]

1. e4 {[%clk 0:03:00]}  c5 {[%clk 0:02:48]} 2. Nf3 {[%clk 0:03:01]}  Nc6 {[%clk 0:02:45]} 3. d4 {[%clk 0:03:00]}  cxd4 {[%clk 0:02:46]} 4. Nxd4 {[%clk 0:03:01]}  g6 {[%clk 0:02:45]} 5. Nc3 {[%clk 0:03:01]}  Bg7 {[%clk 0:02:45]} 6. Be3 {[%clk 0:03:01]}  Nf6 {[%clk 0:02:46]} 7. f3 {[%clk 0:03:01]}  O-O {[%clk 0:02:45]} 8. Qd2 {[%clk 0:02:57]}  d5 {[%clk 0:02:41]} 9. exd5 {[%clk 0:02:51]}  Nxd5 {[%clk 0:02:42]} 10. Nxd5 {[%clk 0:02:52]}  Qxd5 {[%clk 0:02:39]} 11. Nxc6 {[%clk 0:02:52]}  Qxc6 {[%clk 0:02:37]} 12. O-O-O {[%clk 0:02:52]}  Be6 {[%clk 0:02:18]} 13. Kb1 {[%clk 0:02:48]}  Qa4 {[%clk 0:01:46]} 14. b3 {[%clk 0:02:48]}  Qa3 {[%clk 0:01:43]} 15. Bd4 {[%clk 0:02:40]}  Rfd8 {[%clk 0:01:26]} 16. Qf2 {[%clk 0:02:31]}  Qb4 {[%clk 0:01:01]} 17. c3 {[%clk 0:02:25]}  Bxd4 {[%clk 0:00:59]} 18. Rxd4 {[%clk 0:02:20]}  Qxc3 {[%clk 0:00:58]} 19. Rxd8+ {[%clk 0:01:57]}  Rxd8 {[%clk 0:00:56]} 20. Qc2 {[%clk 0:01:35]}  Bf5 {[%clk 0:00:54]} 0-1


[Site "https://www.chess.com"]